fUSD/lending_fUSD_20250427
["ID","MTS","AMOUNT","RATE_DAILY","PERIOD"]
[359134269,1745728840449,-192.0,0.00046161,120]
[359134270,1745728840473,-1563.0,0.00046161,30]
[359134271,1745728840497,-189.91009455,0.00046161,30]
[359134272,1745728840521,-117056.14015351,0.00046161,30]
[359134273,1745728840544,-21008.16062439,0.00046161,30]
[359134274,1745728840567,-1200.34699361,0.00046161,120]
[359134275,1745728840592,-296.95314256,0.00046161,120]
[359134276,1745728840615,-228.40823395,0.00046161,120]
[359134277,1745728840645,-500.0,0.00046161,120]
[359134278,1745728840669,-500.0,0.00046161,120]
[359134279,1745728840694,-500.0,0.00046161,120]
[359134280,1745728840719,-500.0,0.00046161,120]
[359134281,1745728840743,-500.0,0.00046161,120]
[359134282,1745728840767,-500.0,0.00046161,120]
[359134283,1745728840792,-500.0,0.00046161,120]
[359134284,1745728840816,-500.0,0.00046161,120]
[359134285,1745728840840,-500.0,0.00046161,120]
[359134286,1745728840864,-500.0,0.00046161,120]
[359134287,1745728840889,-500.0,0.00046161,120]
[359134288,1745728840914,-552.1586744,0.00046161,120]
[359134289,1745728840939,-500.0,0.00046161,120]
[359134290,1745728840965,-500.0,0.00046161,120]
[359134291,1745728840990,-500.0,0.00046161,120]
[359134292,1745728841018,-500.0,0.00046161,120]
[359134293,1745728841043,-500.0,0.00046161,120]
[359134294,1745728841068,-500.0,0.00046161,120]
[359134295,1745728841093,-500.0,0.00046161,120]
[359134296,1745728841119,-500.0,0.00046161,120]
[359134297,1745728841147,-500.0,0.00046161,120]
[359134298,1745728841172,-500.0,0.00046161,120]
[359134299,1745728841199,-500.0,0.00046161,120]
[359134300,1745728841224,-500.0,0.00046161,120]
[359134301,1745728841248,-500.0,0.00046161,120]
[359134302,1745728841273,-169.3705783,0.00046161,120]
[359134303,1745728861132,-2112.94459302,0.0003254,30]
[359134304,1745728861166,-300.0,0.00032876,30]
[359134305,1745728861192,-300.0,0.00032876,30]
[359134306,1745728861218,-302.09781464,0.00032876,30]
[359134307,1745728861247,-185.95,0.00032877,30]
[359134308,1745728861279,-188.1,0.000335,31]
[359134309,1745728861311,-188.1,0.000335,31]
[359134310,1745728861341,-188.1,0.000335,31]
[359134311,1745728861369,-188.1,0.000335,31]
[359134312,1745728861398,-188.1,0.000335,31]
[359134313,1745728861435,-188.1,0.000335,31]
[359134314,1745728861475,-188.1,0.000335,31]
[359134315,1745728861508,-188.1,0.000335,31]
[359134316,1745728861560,-188.1,0.000335,31]
[359134317,1745728861603,-188.1,0.000335,31]
[359134318,1745728861651,-188.1,0.000335,31]
[359134319,1745728861700,-188.1,0.000335,31]
[359134320,1745728861757,-188.1,0.000353,31]
[359134321,1745728861797,-188.1,0.000353,31]
[359134322,1745728861843,-188.1,0.000353,31]
[359134323,1745728861883,-188.1,0.000353,31]
[359134324,1745728861924,-188.1,0.000353,31]
[359134325,1745728861968,-188.1,0.000353,31]
[359134326,1745728862006,-188.1,0.000353,31]
[359134327,1745728862043,-188.1,0.000353,31]
[359134328,1745728862090,-188.1,0.000353,31]
[359134329,1745728862130,-188.1,0.000353,31]
[359134330,1745728862169,-188.1,0.000353,31]
[359134331,1745728862206,-188.1,0.000353,31]
[359134332,1745728862250,-188.1,0.000353,31]
[359134333,1745728862298,-188.1,0.000353,31]
[359134334,1745728862339,-188.1,0.000353,31]
[359134335,1745728862374,-188.1,0.000353,31]
[359134336,1745728862408,-188.1,0.000353,31]
[359134337,1745728862447,-188.1,0.000353,31]
[359134338,1745728862486,-188.1,0.000353,31]
[359134339,1745728862519,-188.1,0.000353,31]
[359134340,1745728862552,-188.1,0.000353,31]
[359134341,1745728862593,-188.1,0.000353,31]
[359134342,1745728862634,-188.1,0.000353,31]
[359134343,1745728862666,-188.1,0.000353,31]
[359134344,1745728862705,-873.93465721,0.00036,30]
[359134345,1745728862761,-188.1,0.000371,31]
[359134346,1745728862796,-188.1,0.000371,31]
[359134347,1745728862832,-188.1,0.000371,31]
[359134348,1745728862871,-188.1,0.000371,31]
[359134349,1745728862907,-188.1,0.000371,31]
[359134350,1745728862944,-188.1,0.000371,31]
[359134351,1745728862984,-188.1,0.000371,31]
[359134352,1745728863021,-188.1,0.000371,31]
[359134353,1745728863060,-188.1,0.000371,31]
[359134354,1745728863099,-188.1,0.000371,31]
[359134355,1745728863147,-188.1,0.000371,31]
[359134356,1745728863188,-188.1,0.000371,31]
[359134357,1745728863229,-188.1,0.000371,31]
[359134358,1745728863268,-188.1,0.000371,31]
[359134359,1745728863306,-188.1,0.000371,31]
[359134360,1745728863346,-188.1,0.000371,31]
[359134361,1745728863382,-188.1,0.000371,31]
[359134362,1745728863418,-188.1,0.000371,31]
[359134363,1745728863455,-188.1,0.000371,31]
[359134364,1745728863490,-188.1,0.000371,31]
[359134365,1745728863525,-188.1,0.000371,31]
[359134366,1745728863560,-188.1,0.000371,31]
[359134367,1745728863598,-188.1,0.000371,31]
[359134368,1745728863635,-188.1,0.000371,31]
[359134369,1745728863682,-312.0,0.000377,54]
[359134370,1745728863723,-242.23322226,0.00037808,60]
[359134371,1745728863758,-1786.37447857,0.00037808,60]
[359134372,1745728863795,-185.95,0.00038356,30]
[359134373,1745728863829,-170.91360101,0.000384,33]
[359134374,1745728863863,-160.0,0.000387,57]
[359134375,1745728863899,-799.999999,0.00039,120]
[359134376,1745728863930,-1139.7101226,0.00039,120]
[359134377,1745728863968,-188.1,0.00039,31]
[359134378,1745728864007,-188.1,0.00039,31]
[359134379,1745728864049,-188.1,0.00039,31]
[359134380,1745728864092,-188.1,0.00039,31]
[359134381,1745728864134,-188.1,0.00039,31]
[359134382,1745728864183,-188.1,0.00039,31]
[359134383,1745728864227,-188.1,0.00039,31]
[359134384,1745728864267,-188.1,0.00039,31]
[359134385,1745728864308,-188.1,0.00039,31]
[359134386,1745728864351,-188.1,0.00039,31]
[359134387,1745728864388,-188.1,0.00039,31]
[359134388,1745728864425,-188.1,0.00039,31]
[359134389,1745728864462,-188.1,0.00039,31]
[359134390,1745728864500,-188.1,0.00039,31]
[359134391,1745728864538,-188.1,0.00039,31]
[359134392,1745728864575,-188.1,0.00039,31]
[359134393,1745728864610,-188.1,0.00039,31]
[359134394,1745728864646,-188.1,0.00039,31]
[359134395,1745728864680,-188.1,0.00039,31]
[359134396,1745728864714,-188.1,0.00039,31]
[359134397,1745728864748,-188.1,0.00039,31]
[359134398,1745728864782,-188.1,0.00039,31]
[359134399,1745728864815,-188.1,0.00039,31]
[359134400,1745728864851,-188.1,0.00039,31]
[359134401,1745728864880,-160.0,0.000397,60]
[359134402,1745728864910,-151.65324015,0.000399,30]
[359134403,1745728864941,-241.42142587,0.0004,30]
[359134404,1745728864971,-794.39556464,0.0004,30]
[359134405,1745728865000,-471.52820028,0.0004,30]
[359134406,1745728865029,-155.61851248,0.0004,120]
[359134407,1745728865058,-80366.0,0.0004,120]
[359134408,1745728865088,-600.0,0.0004,120]
[359134409,1745728865117,-1000.0,0.0004,120]
[359134410,1745728865149,-157.75,0.0004,30]
[359134411,1745728865178,-157.75,0.0004,30]
[359134412,1745728865209,-1000.0,0.0004025,120]
[359134413,1745728865241,-1000.0,0.000405,120]
[359134414,1745728865269,-1333.0,0.00040658,120]
[359134415,1745728865847,-160.0,0.000407,63]
[359134416,1745728865872,-1000.0,0.0004075,120]
[359134417,1745728865902,-188.1,0.000408,31]
[359134418,1745728865931,-188.1,0.000408,31]
[359134419,1745728865961,-188.1,0.000408,31]
[359134420,1745728865993,-188.1,0.000408,31]
[359134421,1745728866023,-188.1,0.000408,31]
[359134422,1745728866053,-188.1,0.000408,31]
[359134423,1745728866083,-188.1,0.000408,31]
[359134424,1745728866114,-188.1,0.000408,31]
[359134425,1745728866144,-188.1,0.000408,31]
[359134426,1745728866177,-188.1,0.000408,31]
[359134427,1745728866208,-188.1,0.000408,31]
[359134428,1745728866238,-188.1,0.000408,31]
[359134429,1745728866269,-188.1,0.000408,31]
[359134430,1745728866298,-188.1,0.000408,31]
[359134431,1745728866327,-188.1,0.000408,31]
[359134432,1745728866357,-188.1,0.000408,31]
[359134433,1745728866381,-309.95153,0.00040888,30]
[359134434,1745728866407,-300.0,0.00041,120]
[359134435,1745728866432,-1000.0,0.00041,120]
[359134436,1745728866457,-55190.70124936,0.00041,30]
[359134437,1745728866485,-309.95153,0.00041088,30]
[359134438,1745728866510,-1000.0,0.00041095,120]
[359134439,1745728866535,-1000.0,0.00041095,120]
[359134440,1745728866559,-1000.0,0.00041095,120]
[359134441,1745728866583,-1000.0,0.00041095,120]
[359134442,1745728866609,-1000.0,0.00041095,120]
[359134443,1745728866639,-1000.0,0.00041095,120]
[359134444,1745728866664,-1000.0,0.00041095,120]
[359134445,1745728866689,-1000.0,0.00041095,120]
[359134446,1745728866715,-1000.0,0.00041095,120]
[359134447,1745728866742,-1000.0,0.00041095,120]
[359134448,1745728866768,-1000.0,0.00041095,120]
[359134449,1745728866794,-1000.0,0.00041095,120]
[359134450,1745728866820,-1000.0,0.00041095,120]
[359134451,1745728866848,-1000.0,0.00041095,120]
[359134452,1745728866873,-1000.0,0.00041095,120]
[359134453,1745728866899,-221.20707633,0.00041095,120]
[359134454,1745728866925,-399.76,0.00041095,120]
[359134455,1745728866955,-600.0,0.00041095,30]
[359134456,1745728866981,-161.91845434,0.00041095,30]
[359134457,1745728867007,-500.0,0.00041096,30]
[359134458,1745728867032,-477.0,0.00041096,30]
[359134459,1745728867059,-1000.0,0.0004125,120]
[359134460,1745728867086,-309.95153,0.00041288,30]
[359134461,1745728867113,-2000.0,0.00041485,120]
[359134462,1745728867148,-178.115787,0.00041485,120]
[359134463,1745728867177,-309.95153,0.00041488,30]
[359134464,1745728867205,-1000.0,0.000415,120]
[359134465,1745728867232,-309.95153,0.00041688,30]
[359134466,1745728867259,-1287.0,0.00041689,30]
[359134467,1745728867285,-160.0,0.000417,66]
[359134468,1745728867312,-1000.0,0.0004175,120]
[359134469,1745728867340,-309.95153,0.00041888,30]
[359134470,1745728867366,-208.0,0.0004193,30]
[359134471,1745728867392,-800.0,0.0004193,120]
[359134472,1745728867417,-150.5,0.0004197,120]
[359134473,1745728867443,-150.5,0.0004197,120]
[359134474,1745728867470,-150.5,0.0004197,120]
[359134475,1745728867496,-150.5,0.0004197,120]
[359134476,1745728867522,-298.65,0.0004197,120]
[359134477,1745728867547,-181.19,0.0004197,120]
[359134478,1745728867572,-150.5,0.0004198,120]
[359134479,1745728867598,-150.5,0.0004198,120]
[359134480,1745728867623,-150.5,0.0004198,120]
[359134481,1745728867748,-150.5,0.0004198,120]
[359134482,1745728867774,-150.5,0.0004198,120]
[359134483,1745728867799,-150.5,0.0004198,120]
[359134484,1745728867824,-163.84,0.0004198,120]
[359134485,1745728867849,-197.69,0.0004198,120]
[359134486,1745728867873,-150.5,0.0004199,120]
[359134487,1745728867898,-150.5,0.0004199,120]
[359134488,1745728867922,-150.5,0.0004199,120]
[359134489,1745728867946,-150.5,0.0004199,120]
[359134490,1745728867971,-150.5,0.0004199,120]
[359134491,1745728867996,-150.5,0.0004199,120]
[359134492,1745728868021,-150.5,0.0004199,120]
[359134493,1745728868045,-150.5,0.0004199,120]
[359134494,1745728868071,-500.0,0.00042,120]
[359134495,1745728868095,-300.0,0.00042,120]
[359134496,1745728868126,-1001.54,0.00042,120]
[359134497,1745728868154,-309.95153,0.00042088,30]
[359134498,1745728868179,-1000.0,0.0004211,120]
[359134499,1745728868204,-1287.0,0.00042119,30]
[359134500,1745728868230,-1000.0,0.0004225,120]
[359134501,1745728868254,-309.95153,0.00042288,30]
[359134502,1745728868279,-167.056,0.00042382,64]
[359134503,1745728868305,-2688.923,0.00042382,64]
[359134504,1745728868331,-399.76,0.00042465,120]
[359134505,1745728868356,-309.95153,0.00042488,30]
[359134506,1745728868381,-1000.0,0.000425,120]
[359134507,1745728868408,-1287.0,0.00042549,30]
[359134508,1745728868437,-309.95153,0.00042688,30]
[359134509,1745728868464,-248.88939586,0.00042691,30]
[359134510,1745728868490,-287.58942068,0.00042691,30]
[359134511,1745728868514,-150.0,0.00042691,30]
[359134512,1745728868539,-1044.81580486,0.00042691,30]
[359134513,1745728868566,-160.0,0.000427,69]
[359134514,1745728868590,-1000.0,0.0004275,120]
[359134515,1745728868615,-309.95153,0.00042888,30]
[359134516,1745728868644,-1287.0,0.00042979,30]
[359134517,1745728868668,-523.51812711,0.00042979,30]
[359134518,1745728868694,-784.0,0.00043,30]
[359134519,1745728868720,-13890.33,0.00043,60]
[359134520,1745728868744,-157.9559339,0.00043,120]
[359134521,1745728868768,-300.0,0.00043,120]
[359134522,1745728868792,-213.38,0.00043,120]
[359134523,1745728868816,-1500.0,0.00043,120]
[359134524,1745728868840,-309.95153,0.00043088,30]
[359134525,1745728868864,-1000.0,0.0004311,120]
[359134526,1745728868889,-335.12,0.000432,120]
[359134527,1745728868914,-1000.0,0.0004325,120]
[359134528,1745728868939,-309.95153,0.00043288,30]
[359134529,1745728868964,-1287.0,0.00043408,30]
[359134530,1745728868990,-1046.18089513,0.0004347,30]
[359134531,1745728869015,-309.95153,0.00043488,30]
[359134532,1745728869040,-1500.0,0.000435,120]
[359134533,1745728869064,-246.77,0.000436,120]
[359134534,1745728869089,-296.26,0.000436,120]
[359134535,1745728869113,-269.91,0.000436,120]
[359134536,1745728869138,-238.84,0.000436,120]
[359134537,1745728869166,-309.95153,0.00043688,30]
[359134538,1745728869191,-160.0,0.000437,72]
[359134539,1745728869216,-208.0,0.0004371,30]
[359134540,1745728869240,-1000.0,0.0004375,120]
[359134541,1745728869266,-399.76,0.00043835,120]
[359134542,1745728869290,-1000.0,0.00043835,120]
[359134543,1745728869315,-1000.0,0.00043835,120]
[359134544,1745728869340,-1000.0,0.00043835,120]
[359134545,1745728869364,-1000.0,0.00043835,120]
[359134546,1745728869388,-1050.80450909,0.00043835,120]
[359134547,1745728869416,-185.95,0.00043836,30]
[359134548,1745728869441,-1287.0,0.00043838,30]
[359134549,1745728869466,-163.02122194,0.0004384,120]
[359134550,1745728869492,-163.02122194,0.0004384,120]
[359134551,1745728869517,-163.02122194,0.0004384,120]
[359134552,1745728869543,-163.02122194,0.0004384,120]
[359134553,1745728869567,-163.02122194,0.0004384,120]
[359134554,1745728869593,-163.02122194,0.0004384,120]
[359134555,1745728869619,-163.02122194,0.0004384,120]
[359134556,1745728869643,-163.02,0.0004384,120]
[359134557,1745728869669,-152.15314048,0.0004384,120]
[359134558,1745728869693,-152.15314048,0.0004384,120]
[359134559,1745728869721,-152.15314048,0.0004384,120]
[359134560,1745728869746,-152.15314048,0.0004384,120]
[359134561,1745728869773,-152.15314048,0.0004384,120]
[359134562,1745728869800,-152.15314048,0.0004384,120]
[359134563,1745728869826,-152.15314048,0.0004384,120]
[359134564,1745728869852,-152.15314048,0.0004384,120]
[359134565,1745728869877,-152.15314048,0.0004384,120]
[359134566,1745728869903,-152.15314048,0.0004384,120]
[359134567,1745728869929,-152.15314048,0.0004384,120]
[359134568,1745728869954,-152.15314048,0.0004384,120]
[359134569,1745728869979,-152.15314048,0.0004384,120]
[359134570,1745728870004,-152.15314048,0.0004384,120]
[359134571,1745728870029,-152.15314048,0.0004384,120]
[359134572,1745728870054,-152.15314048,0.0004384,120]
[359134573,1745728870079,-152.15314048,0.0004384,120]
[359134574,1745728870104,-152.15314048,0.0004384,120]
[359134575,1745728870130,-152.15314048,0.0004384,120]
[359134576,1745728870157,-152.15,0.0004384,120]
[359134577,1745728870182,-388.10058971,0.0004384,120]
[359134578,1745728870208,-388.10058971,0.0004384,120]
[359134579,1745728870233,-388.10058971,0.0004384,120]
[359134580,1745728870258,-388.10058971,0.0004384,120]
[359134581,1745728870282,-388.10058971,0.0004384,120]
[359134582,1745728870306,-388.10058971,0.0004384,120]
[359134583,1745728870330,-388.10058971,0.0004384,120]
[359134584,1745728870354,-388.10058971,0.0004384,120]
[359134585,1745728870521,-388.10058971,0.0004384,120]
[359134586,1745728870553,-388.10058971,0.0004384,120]
[359134587,1745728870577,-388.10058971,0.0004384,120]
[359134588,1745728870601,-388.10058971,0.0004384,120]
[359134589,1745728870625,-388.10058971,0.0004384,120]
[359134590,1745728870648,-388.10058971,0.0004384,120]
[359134591,1745728870673,-388.10058971,0.0004384,120]
[359134592,1745728870696,-388.10058971,0.0004384,120]
[359134593,1745728870723,-388.10058971,0.0004384,120]
[359134594,1745728870747,-388.10058971,0.0004384,120]
[359134595,1745728870771,-388.10058971,0.0004384,120]
[359134596,1745728870795,-388.1,0.0004384,120]
[359134597,1745728870818,-905.56804265,0.0004384,120]
[359134598,1745728870842,-905.56804265,0.0004384,120]
[359134599,1745728870866,-905.56804265,0.0004384,120]
[359134600,1745728870891,-905.56804265,0.0004384,120]
[359134601,1745728870917,-905.56804265,0.0004384,120]
[359134602,1745728870942,-905.56804265,0.0004384,120]
[359134603,1745728870969,-905.56804265,0.0004384,120]
[359134604,1745728870994,-905.56804265,0.0004384,120]
[359134605,1745728871021,-905.56804265,0.0004384,120]
[359134606,1745728871046,-905.56804265,0.0004384,120]
[359134607,1745728871071,-905.56804265,0.0004384,120]
[359134608,1745728871096,-905.56804265,0.0004384,120]
[359134609,1745728871122,-905.56804265,0.0004384,120]
[359134610,1745728871148,-905.56804265,0.0004384,120]
[359134611,1745728871174,-905.56804265,0.0004384,120]
[359134612,1745728871199,-905.56804265,0.0004384,120]
[359134613,1745728871225,-905.56804265,0.0004384,120]
[359134614,1745728871250,-905.56804265,0.0004384,120]
[359134615,1745728871274,-905.56804265,0.0004384,120]
[359134616,1745728871299,-905.56,0.0004384,120]
[359134617,1745728871324,-416.93850882,0.0004384,120]
[359134618,1745728871349,-416.93850882,0.0004384,120]
[359134619,1745728871373,-416.93850882,0.0004384,120]
[359134620,1745728871397,-416.93850882,0.0004384,120]
[359134621,1745728871421,-416.93850882,0.0004384,120]
[359134622,1745728871446,-416.93850882,0.0004384,120]
[359134623,1745728871473,-416.93850882,0.0004384,120]
[359134624,1745728871497,-416.93850882,0.0004384,120]
[359134625,1745728871522,-416.93850882,0.0004384,120]
[359134626,1745728871546,-416.93850882,0.0004384,120]
[359134627,1745728871570,-416.93850882,0.0004384,120]
[359134628,1745728871594,-416.93850882,0.0004384,120]
[359134629,1745728871618,-416.93850882,0.0004384,120]
[359134630,1745728871642,-416.93850882,0.0004384,120]
[359134631,1745728871667,-416.93850882,0.0004384,120]
[359134632,1745728871690,-416.93850882,0.0004384,120]
[359134633,1745728871714,-416.93850882,0.0004384,120]
[359134634,1745728871738,-416.93850882,0.0004384,120]
[359134635,1745728871762,-416.93850882,0.0004384,120]
[359134636,1745728871785,-416.93,0.0004384,120]
[359134637,1745728871810,-972.85652058,0.0004384,120]
[359134638,1745728871834,-972.85652058,0.0004384,120]
[359134639,1745728871858,-972.85652058,0.0004384,120]
[359134640,1745728871882,-972.85652058,0.0004384,120]
[359134641,1745728871907,-972.85652058,0.0004384,120]
[359134642,1745728871930,-972.85652058,0.0004384,120]
[359134643,1745728871955,-972.85652058,0.0004384,120]
[359134644,1745728871979,-972.85652058,0.0004384,120]
[359134645,1745728872004,-972.85652058,0.0004384,120]
[359134646,1745728872028,-972.85652058,0.0004384,120]
[359134647,1745728872053,-972.85652058,0.0004384,120]
[359134648,1745728872077,-972.85652058,0.0004384,120]
[359134649,1745728872101,-972.85652058,0.0004384,120]
[359134650,1745728872127,-972.85652058,0.0004384,120]
[359134651,1745728872154,-972.85652058,0.0004384,120]
[359134652,1745728872179,-972.85652058,0.0004384,120]
[359134653,1745728872205,-972.85652058,0.0004384,120]
[359134654,1745728872231,-972.85652058,0.0004384,120]
[359134655,1745728872257,-972.85652058,0.0004384,120]
[359134656,1745728872282,-972.85,0.0004384,120]
[359134657,1745728872306,-1253.93717753,0.000439,120]
[359134658,1745728872331,-187.91778834,0.00043978,30]
[359134659,1745728872356,-300.0,0.00044,120]
[359134660,1745728872381,-300.0,0.00044,120]
[359134661,1745728872406,-522.907444,0.00044,57]
[359134662,1745728872431,-1000.0,0.00044,120]
[359134663,1745728872457,-150.0,0.00044015,120]
[359134664,1745728872487,-309.95153,0.00044088,30]
[359134665,1745728872514,-1000.0,0.0004411,120]
[359134666,1745728872542,-1000.0,0.0004425,120]
[359134667,1745728872567,-1287.0,0.00044268,30]
[359134668,1745728872593,-309.95153,0.00044288,30]
[359134669,1745728872880,-168.008436,0.00044357,90]
[359134670,1745728872907,-331.84891957,0.0004439,120]
[359134671,1745728872934,-309.95153,0.00044488,30]
[359134672,1745728872960,-1500.0,0.000445,120]
[359134673,1745728872985,-309.95153,0.00044688,30]
[359134674,1745728873012,-160.0,0.000447,75]
[359134675,1745728873037,-1000.0,0.0004475,120]
[359134676,1745728873064,-309.95153,0.00044888,30]
[359134677,1745728873089,-16628.28612787,0.000449,30]
[359134678,1745728873118,-2290.45,0.00045,120]
[359134679,1745728873146,-2290.45,0.00045,120]
[359134680,1745728873189,-1476.31691084,0.00045,120]
[359134681,1745728873220,-1070.89912694,0.00045,30]
[359134682,1745728873250,-2838.3292399,0.00045,30]
[359134683,1745728873277,-1049.31,0.00045,120]
[359134684,1745728873305,-344.82901358,0.00045,120]
[359134685,1745728873332,-300.0,0.00045,120]
[359134686,1745728873357,-1027.24985238,0.00045,30]
[359134687,1745728873384,-150.64,0.00045,85]
[359134688,1745728873412,-229.65784233,0.00045,30]
[359134689,1745728873438,-1500.0,0.00045,120]
[359134690,1745728873465,-293.00633922,0.00045,120]
[359134691,1745728873493,-150.0,0.00045025,120]
[359134692,1745728873520,-309.95153,0.00045088,30]
[359134693,1745728873546,-1000.0,0.0004511,120]
[359134694,1745728873573,-399.76,0.00045205,120]
[359134695,1745728873599,-154.46806567,0.00045223,30]
[359134696,1745728873625,-1000.0,0.0004525,120]
[359134697,1745728873651,-1764.54774439,0.00045279,120]
[359134698,1745728873683,-309.95153,0.00045288,30]
[359134699,1745728873713,-150.0,0.00045437,120]
[359134700,1745728873739,-242.0,0.0004544,30]
[359134701,1745728873767,-309.95153,0.00045488,30]
[359134702,1745728873794,-208.0,0.000455,30]
[359134703,1745728873820,-1000.0,0.000455,120]
[359134704,1745728873848,-309.95153,0.00045688,30]
[359134705,1745728873874,-160.0,0.000457,78]
[359134706,1745728873900,-1000.0,0.0004575,120]
[359134707,1745728873927,-2290.45,0.000458,120]
[359134708,1745728873954,-150.0,0.00045853,120]
[359134709,1745728873981,-309.95153,0.00045888,30]
[359134710,1745728874006,-1401.99883773,0.000459,119]
[359134711,1745728874035,-354.76216241,0.00046,60]
[359134712,1745728874063,-363.75402054,0.00046,120]
[359134713,1745728874090,-300.0,0.00046,120]
[359134714,1745728874116,-151.76072582,0.00046,120]
[359134715,1745728874142,-300.0,0.00046,120]
[359134716,1745728874178,-1200.34699361,0.00046,120]
[359134717,1745728874207,-296.95314256,0.00046,120]
[359134718,1745728874235,-1500.0,0.00046,120]
[359134719,1745728874263,-309.95153,0.00046088,30]
[359134720,1745728874289,-150.0,0.000461,30]
[359134721,1745728874326,-1000.0,0.0004625,120]
[359134722,1745728874353,-309.95153,0.00046288,30]
[359134723,1745728874379,-1000.0,0.0004641,120]
[359134724,1745728874405,-309.95153,0.00046488,30]
[359134725,1745728874431,-1000.0,0.000465,120]
[359134726,1745728874458,-1253.82,0.00046547,120]
[359134727,1745728874485,-1253.82,0.00046547,120]
[359134728,1745728874513,-1253.82,0.00046547,120]
[359134729,1745728874538,-1253.82,0.00046547,120]
[359134730,1745728874564,-1253.82,0.00046547,120]
[359134731,1745728874589,-1253.82,0.00046547,120]
[359134732,1745728874615,-1253.82,0.00046547,120]
[359134733,1745728874642,-1253.82,0.00046547,120]
[359134734,1745728874668,-1253.82,0.00046547,120]
[359134735,1745728874694,-1253.82,0.00046547,120]
[359134736,1745728874720,-1253.82,0.00046547,120]
[359134737,1745728874752,-1253.82,0.00046547,120]
[359134738,1745728874778,-1253.82,0.00046547,120]
[359134739,1745728874804,-1253.82,0.00046547,120]
[359134740,1745728874835,-1253.82,0.00046547,120]
[359134741,1745728874861,-1253.82,0.00046547,120]
[359134742,1745728874889,-1253.82,0.00046547,120]
[359134743,1745728874917,-1253.82,0.00046547,120]
[359134744,1745728874942,-1253.82,0.00046547,120]
[359134745,1745728874968,-1253.82,0.00046547,120]
[359134746,1745728874994,-1253.82,0.00046547,120]
[359134747,1745728875020,-1253.82,0.00046547,120]
[359134748,1745728875046,-1253.82,0.00046547,120]
[359134749,1745728875071,-1253.91838781,0.00046547,120]
[359134750,1745728875097,-399.76,0.00046575,120]
[359134751,1745728875124,-309.95153,0.00046688,30]
[359134752,1745728875154,-160.0,0.000467,81]
[359134753,1745728875180,-309.95153,0.00046888,30]
[359134754,1745728875207,-13890.33,0.00047,60]
[359134755,1745728875235,-300.0,0.00047,120]
[359134756,1745728875260,-1500.0,0.00047,120]
[359134757,1745728875287,-150.0,0.00047048,120]
[359134758,1745728875314,-1000.0,0.0004711,120]
[359134759,1745728875340,-242.0,0.0004724,30]
[359134760,1745728875365,-1000.0,0.0004725,120]
[359134761,1745728875392,-208.0,0.0004729,30]
[359134762,1745728875417,-1000.0,0.000475,120]
[359134763,1745728875445,-160.0,0.000477,84]
[359134764,1745728875470,-1000.0,0.0004775,120]
[359134765,1745728875497,-150.0,0.00047771,120]
[359134766,1745728875525,-150.0,0.00047846,120]
[359134767,1745728875552,-399.76,0.00047945,120]
[359134768,1745728875577,-237.76069793,0.00048,120]